{"text_format":"1","workbook":"xlsx","n_sheets":1,"sheets":["CGN2009_BDME_ACTUALIZACION"],"not_rendered":{"charts":0,"images":0,"macros":1,"external_links":0,"defined_names":0,"comments":1,"pivot_tables":0},"unopened":[],"bounds":{"document_bytes":16777216,"sheet_cells":100000,"rows_first":2000,"rows_last":500,"rows_between":2000,"halvings":0,"cell_chars":16384,"cell_head_chars":4096},"cells_cut":0,"cells_raw":0,"read":"whole","date_system":"1900"}

{"sheet":"CGN2009_BDME_ACTUALIZACION","index":0,"n_rows":1000,"n_cols":14,"rows_kept":1000,"cut":false,"hidden":false,"merged":[[0,0,0,7],[2,0,2,4],[3,5,7,5],[10,4,10,6],[4,0,4,2],[5,0,5,2],[6,0,6,2]]}
["BOLETÍN DE DEUDORES MOROSOS DEL ESTADO - BDME  (CGN2011_BDME_ACTUALIZACION)"]
[]
["ATENCION: Antes de diligenciar esta herramienta debe tener una carpeta en el disco C que se llame BDME"]
[null,null,null,null,null,"En caso de dudas en el diligenciamiento de esta Herramienta de captura, POR FAVOR haga clic aquí para mirar el vídeo tutorial."]
["CODIGO CGN ENTIDAD PUBLICA"]
["PERIODO DE REPORTE"]
["AÑO"]
[]
[]
["CONCEPTO","TIPO DE DEUDOR","NÚMERO DE OBLIGACIÓN","NÚMERO DE IDENTIFICACIÓN","TIPO DE IDENTIFICACIÓN","NOMBRE Y APELLIDO O RAZÓN SOCIAL","ACTUALIZACION","ESTADO DE LA DEUDA",null,null,null,"S"]
[{"$f":"D5","v":0},{"$f":"VLOOKUP(D6,L64:M71,2,FALSE)","v":{"$error":"#N/A"}},{"$f":"D7","v":0},"CGN2011_BDME_ACTUALIZACION",{"$f":"TODAY()","v":"2026-05-12"}]
[null,null,null,null,null,null,null,null,{"$f":"IF(E12=$L$27,1,IF(E12=$L$28,3,IF(E12=$L$29,4,IF(E12=$L$30,5,IF(E12=$L$31,10,IF(E12=$L$32,9,IF(E12=$L$33,2,IF(E12=$L$34,9,\"\"))))))))","v":""},{"$f":"IF(H12=$L$46,1,IF(H12=$L$47,2,IF(H12=$L$48,3,IF(H12=$L$49,4,IF(H12=$L$50,5,IF(H12=$L$51,6,\"\"))))))","v":""},{"$f":"IF(G12=$L$59,1,IF(G12=$L$60,2,\"\"))","v":""}]
[null,null,null,null,null,null,null,null,{"$f":"IF(E13=$L$27,1,IF(E13=$L$28,2,IF(E13=$L$29,3,IF(E13=$L$30,4,IF(E13=$L$31,5,IF(E13=$L$32,6,IF(E13=$L$33,9,IF(E13=$L$34,10,\"\"))))))))","v":""},{"$f":"IF(H13=$L$46,1,IF(H13=$L$47,2,IF(H13=$L$48,3,IF(H13=$L$49,4,IF(H13=$L$50,5,IF(H13=$L$51,6,\"\"))))))","v":""},""]
[null,null,null,null,null,null,null,null,"","","","periodo",{"$f":"IF(D6=\"ENERO\",10101,IF(D6=\"FEBRERO\",10202,IF(D6=\"MARZO\",10303,IF(D6=\"ABRIL\",10404,IF(D6=\"MAYO\",10505,IF(D6=\"JUNIO\",10606,IF(D6=\"JULIO\",10707,IF(D6=\"AGOSTO\",10808,0))))))))","v":0}]
[null,null,null,null,null,null,null,null,"","","","5 SMMLV",{"$f":"1750905*5","v":8754525},0]
[null,null,null,null,null,null,null,null,"","",""]
[null,null,null,null,null,null,null,null,"","","",{"$f":"CONCATENATE(\"ACTUALIZACION\",\" \",D5,\" \",D6,\" \",D7)","v":"ACTUALIZACION   "}]
[null,null,null,null,null,null,null,null,"","",""]
[null,null,null,null,null,null,null,null,"","",""]
[null,null,null,null,null,null,null,null,"","",""]
[null,null,null,null,null,null,null,null,"","",""]
[null,null,null,null,null,null,null,null,"","","","LISTA DE TIPO DE CONCEPTO"]
[null,null,null,null,null,null,null,null,"","","","DEUDOR PRINCIPAL"]
[null,null,null,null,null,null,null,null,"","","","DEUDOR SOLIDARIO"]
[null,null,null,null,null,null,null,null,"","","","SIN DEUDORES MOROSOS"]
[null,null,null,null,null,null,null,null,"","","","TIPO DE IDENTIFICACIÓN"]
[null,null,null,null,null,null,null,null,"","","","CEDULA DE CIUDADANIA",1]
[null,null,null,null,null,null,null,null,"","","","TARJETA DE IDENTIDAD",3]
[null,null,null,null,null,null,null,null,"","","","CEDULA DE EXTRANJERIA",4]
[null,null,null,null,null,null,null,null,"","","","PASAPORTE",5]
[null,null,null,null,null,null,null,null,"","","","PERMISO POR PROTECCION TEMPORAL",10]
[null,null,null,null,null,null,null,null,"","","","REGISTRO CIVIL",9]
[null,null,null,null,null,null,null,null,"","","","NIT",2]
[null,null,null,null,null,null,null,null,"","",{"$f":"IF(G35=$L$59,1,IF(G35=$L$60,2,\"\"))","v":""},"SOCIEDAD EXTRANJERA SIN NIT EN COLOMBIA",6]
[null,null,null,null,null,null,null,null,"","",""]
[null,null,null,null,null,null,null,null,"","",""]
[null,null,null,null,null,null,null,null,"","",""]
[null,null,null,null,null,null,null,null,"","",""]
[null,null,null,null,null,null,null,null,"","","","LISTA DE TIPO DE DEUDOR"]
[null,null,null,null,null,null,null,null,"","","","PERSONA NATURAL"]
[null,null,null,null,null,null,null,null,"","","","PERSONA JURIDICA"]
[null,null,null,null,null,null,null,null,"","",""]
[null,null,null,null,null,null,null,null,"","",""]
[null,null,null,null,null,null,null,null,"","",""]
[null,null,null,null,null,null,null,null,"","","","LISTA ESTADO DEUDA"]
[null,null,null,null,null,null,null,null,"","","","SIN LEYENDA"]
[null,null,null,null,null,null,null,null,"","","","RECLAMO EN TRAMITE-DERECHO DE PETICION"]
[null,null,null,null,null,null,null,null,"","","","RECLAMO EN TRAMITE-RECURSOS"]
[null,null,null,null,null,null,null,null,"","","","RECLAMO EN TRAMITE-QUEJA"]
[null,null,null,null,null,null,null,null,"","","","EN DISCUSION JUDICIAL-DEMANDA"]
[null,null,null,null,null,null,null,null,"","","","ACCION DE TUTELA"]
[null,null,null,null,null,null,null,null,"","",""]
[null,null,null,null,null,null,null,null,"","",""]
[null,null,null,null,null,null,null,null,"","",""]
[null,null,null,null,null,null,null,null,"","",""]
[null,null,null,null,null,null,null,null,"","",""]
[null,null,null,null,null,null,null,null,"","",""]
[null,null,null,null,null,null,null,null,"","","","LISTA ACTUALIZACION"]
[null,null,null,null,null,null,null,null,"","","","ACTUALIZACION REPORTE SEMESTRAL"]
[null,null,null,null,null,null,null,null,"","","","ACTUALIZACION INCUMPLIMIENTO ACUERDOS DE PAGO"]
[null,null,null,null,null,null,null,null,"","",""]
[null,null,null,null,null,null,null,null,"","",""]
[null,null,null,null,null,null,null,null,"","","","MESES"]
[null,null,null,null,null,null,null,null,"","","","ENERO",10101]
[null,null,null,null,null,null,null,null,"","","","FEBRERO",10202]
[null,null,null,null,null,null,null,null,"","","","MARZO",10303]
[null,null,null,null,null,null,null,null,"","","","ABRIL",10404]
[null,null,null,null,null,null,null,null,"","","","JULIO",10707]
[null,null,null,null,null,null,null,null,"","","","AGOSTO",10808]
[null,null,null,null,null,null,null,null,"","","","SEPTIEMBRE",10909]
[null,null,null,null,null,null,null,null,"","","","OCTUBRE",11010]
[null,null,null,null,null,null,null,null,"","",""]
[null,null,null,null,null,null,null,null,"","",""]
[null,null,null,null,null,null,null,null,"","",""]
[null,null,null,null,null,null,null,null,"","",""]
[null,null,null,null,null,null,null,null,{"$f":"IF(E76=$L$27,1,IF(E76=$L$28,2,IF(E76=$L$29,3,IF(E76=$L$30,4,IF(E76=$L$31,5,IF(E76=$L$32,6,IF(E76=$L$33,9,IF(E76=$L$34,10,\"\"))))))))","v":""},"",""]
[null,null,null,null,null,null,null,null,"",{"$f":"IF(H77=$L$46,1,IF(H77=$L$47,2,IF(H77=$L$48,3,IF(H77=$L$49,4,IF(H77=$L$50,5,IF(H77=$L$51,6,\"\"))))))","v":""},{"$f":"IF(G78=$L$59,1,IF(G78=$L$60,2,\"\"))","v":""}]
[null,null,null,null,null,null,null,null,"","",""]
[null,null,null,null,null,null,null,null,"","",""]
[null,null,null,null,null,null,null,null,"","",""]
[null,null,null,null,null,null,null,null,"","",""]
[null,null,null,null,null,null,null,null,"","",""]
[null,null,null,null,null,null,null,null,"","",""]
[null,null,null,null,null,null,null,null,"","",""]
[null,null,null,null,null,null,null,null,"","",""]
[null,null,null,null,null,null,null,null,"","",""]
[null,null,null,null,null,null,null,null,"","",""]
[null,null,null,null,null,null,null,null,"","",""]
[null,null,null,null,null,null,null,null,"","",""]
[null,null,null,null,null,null,null,null,"","",""]
[null,null,null,null,null,null,null,null,"","",""]
[null,null,null,null,null,null,null,null,"","",""]
[null,null,null,null,null,null,null,null,"","",""]
[null,null,null,null,null,null,null,null,"","",""]
[null,null,null,null,null,null,null,null,"","",""]
[null,null,null,null,null,null,null,null,"","",""]
[null,null,null,null,null,null,null,null,"","",""]
[null,null,null,null,null,null,null,null,"","",""]
[null,null,null,null,null,null,null,null,"","",""]
[null,null,null,null,null,null,null,null,"","",""]
[null,null,null,null,null,null,null,null,"","",""]
[null,null,null,null,null,null,null,null,"","",""]
[null,null,null,null,null,null,null,null,"","",""]
[null,null,null,null,null,null,null,null,"","",""]
[null,null,null,null,null,null,null,null,"","",""]
[null,null,null,null,null,null,null,null,"","",""]
[null,null,null,null,null,null,null,null,"","",""]
[null,null,null,null,null,null,null,null,"","",""]
[null,null,null,null,null,null,null,null,"","",""]
[null,null,null,null,null,null,null,null,"","",""]
[null,null,null,null,null,null,null,null,"","",""]
[null,null,null,null,null,null,null,null,"","",""]
[null,null,null,null,null,null,null,null,"","",""]
[null,null,null,null,null,null,null,null,"","",""]
[null,null,null,null,null,null,null,null,"","",""]
[null,null,null,null,null,null,null,null,"","",""]
[null,null,null,null,null,null,null,null,"","",""]
[null,null,null,null,null,null,null,null,"","",""]
[null,null,null,null,null,null,null,null,"","",""]
[null,null,null,null,null,null,null,null,"","",""]
[null,null,null,null,null,null,null,null,"","",""]
[null,null,null,null,null,null,null,null,"","",""]
[null,null,null,null,null,null,null,null,"","",""]
[null,null,null,null,null,null,null,null,"","",""]
[null,null,null,null,null,null,null,null,"","",""]
[null,null,null,null,null,null,null,null,"","",""]
[null,null,null,null,null,null,null,null,"","",""]
[null,null,null,null,null,null,null,null,"","",""]
[null,null,null,null,null,null,null,null,"","",""]
[null,null,null,null,null,null,null,null,"","",""]
[null,null,null,null,null,null,null,null,"","",""]
[null,null,null,null,null,null,null,null,"","",""]
[null,null,null,null,null,null,null,null,"","",""]
[null,null,null,null,null,null,null,null,"","",""]
[null,null,null,null,null,null,null,null,"","",""]
[null,null,null,null,null,null,null,null,"","",""]
[null,null,null,null,null,null,null,null,"","",""]
[null,null,null,null,null,null,null,null,"","",""]
[null,null,null,null,null,null,null,null,"","",""]
[null,null,null,null,null,null,null,null,{"$f":"IF(E140=$L$27,1,IF(E140=$L$28,2,IF(E140=$L$29,3,IF(E140=$L$30,4,IF(E140=$L$31,5,IF(E140=$L$32,6,IF(E140=$L$33,9,IF(E140=$L$34,10,\"\"))))))))","v":""},"",""]
[null,null,null,null,null,null,null,null,"",{"$f":"IF(H141=$L$46,1,IF(H141=$L$47,2,IF(H141=$L$48,3,IF(H141=$L$49,4,IF(H141=$L$50,5,IF(H141=$L$51,6,\"\"))))))","v":""},{"$f":"IF(G142=$L$59,1,IF(G142=$L$60,2,\"\"))","v":""}]
[null,null,null,null,null,null,null,null,"","",""]
[null,null,null,null,null,null,null,null,"","",""]
[null,null,null,null,null,null,null,null,"","",""]
[null,null,null,null,null,null,null,null,"","",""]
[null,null,null,null,null,null,null,null,"","",""]
[null,null,null,null,null,null,null,null,"","",""]
[null,null,null,null,null,null,null,null,"","",""]
[null,null,null,null,null,null,null,null,"","",""]
[null,null,null,null,null,null,null,null,"","",""]
[null,null,null,null,null,null,null,null,"","",""]
[null,null,null,null,null,null,null,null,"","",""]
[null,null,null,null,null,null,null,null,"","",""]
[null,null,null,null,null,null,null,null,"","",""]
[null,null,null,null,null,null,null,null,"","",""]
[null,null,null,null,null,null,null,null,"","",""]
[null,null,null,null,null,null,null,null,"","",""]
[null,null,null,null,null,null,null,null,"","",""]
[null,null,null,null,null,null,null,null,"","",""]
[null,null,null,null,null,null,null,null,"","",""]
[null,null,null,null,null,null,null,null,"","",""]
[null,null,null,null,null,null,null,null,"","",""]
[null,null,null,null,null,null,null,null,"","",""]
[null,null,null,null,null,null,null,null,"","",""]
[null,null,null,null,null,null,null,null,"","",""]
[null,null,null,null,null,null,null,null,"","",""]
[null,null,null,null,null,null,null,null,"","",""]
[null,null,null,null,null,null,null,null,"","",""]
[null,null,null,null,null,null,null,null,"","",""]
[null,null,null,null,null,null,null,null,"","",""]
[null,null,null,null,null,null,null,null,"","",""]
[null,null,null,null,null,null,null,null,"","",""]
[null,null,null,null,null,null,null,null,"","",""]
[null,null,null,null,null,null,null,null,"","",""]
[null,null,null,null,null,null,null,null,"","",""]
[null,null,null,null,null,null,null,null,"","",""]
[null,null,null,null,null,null,null,null,"","",""]
[null,null,null,null,null,null,null,null,"","",""]
[null,null,null,null,null,null,null,null,"","",""]
[null,null,null,null,null,null,null,null,"","",""]
[null,null,null,null,null,null,null,null,"","",""]
[null,null,null,null,null,null,null,null,"","",""]
[null,null,null,null,null,null,null,null,"","",""]
[null,null,null,null,null,null,null,null,"","",""]
[null,null,null,null,null,null,null,null,"","",""]
[null,null,null,null,null,null,null,null,"","",""]
[null,null,null,null,null,null,null,null,"","",""]
[null,null,null,null,null,null,null,null,"","",""]
[null,null,null,null,null,null,null,null,"","",""]
[null,null,null,null,null,null,null,null,"","",""]
[null,null,null,null,null,null,null,null,"","",""]
[null,null,null,null,null,null,null,null,"","",""]
[null,null,null,null,null,null,null,null,"","",""]
[null,null,null,null,null,null,null,null,"","",""]
[null,null,null,null,null,null,null,null,"","",""]
[null,null,null,null,null,null,null,null,"","",""]
[null,null,null,null,null,null,null,null,"","",""]
[null,null,null,null,null,null,null,null,"","",""]
[null,null,null,null,null,null,null,null,"","",""]
[null,null,null,null,null,null,null,null,"","",""]
[null,null,null,null,null,null,null,null,"","",""]
[null,null,null,null,null,null,null,null,"","",""]
[null,null,null,null,null,null,null,null,"","",""]
[null,null,null,null,null,null,null,null,{"$f":"IF(E204=$L$27,1,IF(E204=$L$28,2,IF(E204=$L$29,3,IF(E204=$L$30,4,IF(E204=$L$31,5,IF(E204=$L$32,6,IF(E204=$L$33,9,IF(E204=$L$34,10,\"\"))))))))","v":""},"",""]
[null,null,null,null,null,null,null,null,"",{"$f":"IF(H205=$L$46,1,IF(H205=$L$47,2,IF(H205=$L$48,3,IF(H205=$L$49,4,IF(H205=$L$50,5,IF(H205=$L$51,6,\"\"))))))","v":""},{"$f":"IF(G206=$L$59,1,IF(G206=$L$60,2,\"\"))","v":""}]
[null,null,null,null,null,null,null,null,"","",""]
[null,null,null,null,null,null,null,null,"","",""]
[null,null,null,null,null,null,null,null,"","",""]
[null,null,null,null,null,null,null,null,"","",""]
[null,null,null,null,null,null,null,null,"","",""]
[null,null,null,null,null,null,null,null,"","",""]
[null,null,null,null,null,null,null,null,"","",""]
[null,null,null,null,null,null,null,null,"","",""]
[null,null,null,null,null,null,null,null,"","",""]
[null,null,null,null,null,null,null,null,"","",""]
[null,null,null,null,null,null,null,null,"","",""]
[null,null,null,null,null,null,null,null,"","",""]
[null,null,null,null,null,null,null,null,"","",""]
[null,null,null,null,null,null,null,null,"","",""]
[null,null,null,null,null,null,null,null,"","",""]
[null,null,null,null,null,null,null,null,"","",""]
[null,null,null,null,null,null,null,null,"","",""]
[null,null,null,null,null,null,null,null,"","",""]
[null,null,null,null,null,null,null,null,"","",""]
[null,null,null,null,null,null,null,null,"","",""]
[null,null,null,null,null,null,null,null,"","",""]
[null,null,null,null,null,null,null,null,"","",""]
[null,null,null,null,null,null,null,null,"","",""]
[null,null,null,null,null,null,null,null,"","",""]
[null,null,null,null,null,null,null,null,"","",""]
[null,null,null,null,null,null,null,null,"","",""]
[null,null,null,null,null,null,null,null,"","",""]
[null,null,null,null,null,null,null,null,"","",""]
[null,null,null,null,null,null,null,null,"","",""]
[null,null,null,null,null,null,null,null,"","",""]
[null,null,null,null,null,null,null,null,"","",""]
[null,null,null,null,null,null,null,null,"","",""]
[null,null,null,null,null,null,null,null,"","",""]
[null,null,null,null,null,null,null,null,"","",""]
[null,null,null,null,null,null,null,null,"","",""]
[null,null,null,null,null,null,null,null,"","",""]
[null,null,null,null,null,null,null,null,"","",""]
[null,null,null,null,null,null,null,null,"","",""]
[null,null,null,null,null,null,null,null,"","",""]
[null,null,null,null,null,null,null,null,"","",""]
[null,null,null,null,null,null,null,null,"","",""]
[null,null,null,null,null,null,null,null,"","",""]
[null,null,null,null,null,null,null,null,"","",""]
[null,null,null,null,null,null,null,null,"","",""]
[null,null,null,null,null,null,null,null,"","",""]
[null,null,null,null,null,null,null,null,"","",""]
[null,null,null,null,null,null,null,null,"","",""]
[null,null,null,null,null,null,null,null,"","",""]
[null,null,null,null,null,null,null,null,"","",""]
[null,null,null,null,null,null,null,null,"","",""]
[null,null,null,null,null,null,null,null,"","",""]
[null,null,null,null,null,null,null,null,"","",""]
[null,null,null,null,null,null,null,null,"","",""]
[null,null,null,null,null,null,null,null,"","",""]
[null,null,null,null,null,null,null,null,"","",""]
[null,null,null,null,null,null,null,null,"","",""]
[null,null,null,null,null,null,null,null,"","",""]
[null,null,null,null,null,null,null,null,"","",""]
[null,null,null,null,null,null,null,null,"","",""]
[null,null,null,null,null,null,null,null,"","",""]
[null,null,null,null,null,null,null,null,"","",""]
[null,null,null,null,null,null,null,null,"","",""]
[null,null,null,null,null,null,null,null,{"$f":"IF(E268=$L$27,1,IF(E268=$L$28,2,IF(E268=$L$29,3,IF(E268=$L$30,4,IF(E268=$L$31,5,IF(E268=$L$32,6,IF(E268=$L$33,9,IF(E268=$L$34,10,\"\"))))))))","v":""},"",""]
[null,null,null,null,null,null,null,null,"",{"$f":"IF(H269=$L$46,1,IF(H269=$L$47,2,IF(H269=$L$48,3,IF(H269=$L$49,4,IF(H269=$L$50,5,IF(H269=$L$51,6,\"\"))))))","v":""},{"$f":"IF(G270=$L$59,1,IF(G270=$L$60,2,\"\"))","v":""}]
[null,null,null,null,null,null,null,null,"","",""]
[null,null,null,null,null,null,null,null,"","",""]
[null,null,null,null,null,null,null,null,"","",""]
[null,null,null,null,null,null,null,null,"","",""]
[null,null,null,null,null,null,null,null,"","",""]
[null,null,null,null,null,null,null,null,"","",""]
[null,null,null,null,null,null,null,null,"","",""]
[null,null,null,null,null,null,null,null,"","",""]
[null,null,null,null,null,null,null,null,"","",""]
[null,null,null,null,null,null,null,null,"","",""]
[null,null,null,null,null,null,null,null,"","",""]
[null,null,null,null,null,null,null,null,"","",""]
[null,null,null,null,null,null,null,null,"","",""]
[null,null,null,null,null,null,null,null,"","",""]
[null,null,null,null,null,null,null,null,"","",""]
[null,null,null,null,null,null,null,null,"","",""]
[null,null,null,null,null,null,null,null,"","",""]
[null,null,null,null,null,null,null,null,"","",""]
[null,null,null,null,null,null,null,null,"","",""]
[null,null,null,null,null,null,null,null,"","",""]
[null,null,null,null,null,null,null,null,"","",""]
[null,null,null,null,null,null,null,null,"","",""]
[null,null,null,null,null,null,null,null,"","",""]
[null,null,null,null,null,null,null,null,"","",""]
[null,null,null,null,null,null,null,null,"","",""]
[null,null,null,null,null,null,null,null,"","",""]
[null,null,null,null,null,null,null,null,"","",""]
[null,null,null,null,null,null,null,null,"","",""]
[null,null,null,null,null,null,null,null,"","",""]
[null,null,null,null,null,null,null,null,"","",""]
[null,null,null,null,null,null,null,null,"","",""]
[null,null,null,null,null,null,null,null,"","",""]
[null,null,null,null,null,null,null,null,"","",""]
[null,null,null,null,null,null,null,null,"","",""]
[null,null,null,null,null,null,null,null,"","",""]
[null,null,null,null,null,null,null,null,"","",""]
[null,null,null,null,null,null,null,null,"","",""]
[null,null,null,null,null,null,null,null,"","",""]
[null,null,null,null,null,null,null,null,"","",""]
[null,null,null,null,null,null,null,null,"","",""]
[null,null,null,null,null,null,null,null,"","",""]
[null,null,null,null,null,null,null,null,"","",""]
[null,null,null,null,null,null,null,null,"","",""]
[null,null,null,null,null,null,null,null,"","",""]
[null,null,null,null,null,null,null,null,"","",""]
[null,null,null,null,null,null,null,null,"","",""]
[null,null,null,null,null,null,null,null,"","",""]
[null,null,null,null,null,null,null,null,"","",""]
[null,null,null,null,null,null,null,null,"","",""]
[null,null,null,null,null,null,null,null,"","",""]
[null,null,null,null,null,null,null,null,"","",""]
[null,null,null,null,null,null,null,null,"","",""]
[null,null,null,null,null,null,null,null,"","",""]
[null,null,null,null,null,null,null,null,"","",""]
[null,null,null,null,null,null,null,null,"","",""]
[null,null,null,null,null,null,null,null,"","",""]
[null,null,null,null,null,null,null,null,"","",""]
[null,null,null,null,null,null,null,null,"","",""]
[null,null,null,null,null,null,null,null,"","",""]
[null,null,null,null,null,null,null,null,"","",""]
[null,null,null,null,null,null,null,null,"","",""]
[null,null,null,null,null,null,null,null,"","",""]
[null,null,null,null,null,null,null,null,{"$f":"IF(E332=$L$27,1,IF(E332=$L$28,2,IF(E332=$L$29,3,IF(E332=$L$30,4,IF(E332=$L$31,5,IF(E332=$L$32,6,IF(E332=$L$33,9,IF(E332=$L$34,10,\"\"))))))))","v":""},"",""]
[null,null,null,null,null,null,null,null,"",{"$f":"IF(H333=$L$46,1,IF(H333=$L$47,2,IF(H333=$L$48,3,IF(H333=$L$49,4,IF(H333=$L$50,5,IF(H333=$L$51,6,\"\"))))))","v":""},{"$f":"IF(G334=$L$59,1,IF(G334=$L$60,2,\"\"))","v":""}]
[null,null,null,null,null,null,null,null,"","",""]
[null,null,null,null,null,null,null,null,"","",""]
[null,null,null,null,null,null,null,null,"","",""]
[null,null,null,null,null,null,null,null,"","",""]
[null,null,null,null,null,null,null,null,"","",""]
[null,null,null,null,null,null,null,null,"","",""]
[null,null,null,null,null,null,null,null,"","",""]
[null,null,null,null,null,null,null,null,"","",""]
[null,null,null,null,null,null,null,null,"","",""]
[null,null,null,null,null,null,null,null,"","",""]
[null,null,null,null,null,null,null,null,"","",""]
[null,null,null,null,null,null,null,null,"","",""]
[null,null,null,null,null,null,null,null,"","",""]
[null,null,null,null,null,null,null,null,"","",""]
[null,null,null,null,null,null,null,null,"","",""]
[null,null,null,null,null,null,null,null,"","",""]
[null,null,null,null,null,null,null,null,"","",""]
[null,null,null,null,null,null,null,null,"","",""]
[null,null,null,null,null,null,null,null,"","",""]
[null,null,null,null,null,null,null,null,"","",""]
[null,null,null,null,null,null,null,null,"","",""]
[null,null,null,null,null,null,null,null,"","",""]
[null,null,null,null,null,null,null,null,"","",""]
[null,null,null,null,null,null,null,null,"","",""]
[null,null,null,null,null,null,null,null,"","",""]
[null,null,null,null,null,null,null,null,"","",""]
[null,null,null,null,null,null,null,null,"","",""]
[null,null,null,null,null,null,null,null,"","",""]
[null,null,null,null,null,null,null,null,"","",""]
[null,null,null,null,null,null,null,null,"","",""]
[null,null,null,null,null,null,null,null,"","",""]
[null,null,null,null,null,null,null,null,"","",""]
[null,null,null,null,null,null,null,null,"","",""]
[null,null,null,null,null,null,null,null,"","",""]
[null,null,null,null,null,null,null,null,"","",""]
[null,null,null,null,null,null,null,null,"","",""]
[null,null,null,null,null,null,null,null,"","",""]
[null,null,null,null,null,null,null,null,"","",""]
[null,null,null,null,null,null,null,null,"","",""]
[null,null,null,null,null,null,null,null,"","",""]
[null,null,null,null,null,null,null,null,"","",""]
[null,null,null,null,null,null,null,null,"","",""]
[null,null,null,null,null,null,null,null,"","",""]
[null,null,null,null,null,null,null,null,"","",""]
[null,null,null,null,null,null,null,null,"","",""]
[null,null,null,null,null,null,null,null,"","",""]
[null,null,null,null,null,null,null,null,"","",""]
[null,null,null,null,null,null,null,null,"","",""]
[null,null,null,null,null,null,null,null,"","",""]
[null,null,null,null,null,null,null,null,"","",""]
[null,null,null,null,null,null,null,null,"","",""]
[null,null,null,null,null,null,null,null,"","",""]
[null,null,null,null,null,null,null,null,"","",""]
[null,null,null,null,null,null,null,null,"","",""]
[null,null,null,null,null,null,null,null,"","",""]
[null,null,null,null,null,null,null,null,"","",""]
[null,null,null,null,null,null,null,null,"","",""]
[null,null,null,null,null,null,null,null,"","",""]
[null,null,null,null,null,null,null,null,"","",""]
[null,null,null,null,null,null,null,null,"","",""]
[null,null,null,null,null,null,null,null,"","",""]
[null,null,null,null,null,null,null,null,"","",""]
[null,null,null,null,null,null,null,null,{"$f":"IF(E396=$L$27,1,IF(E396=$L$28,2,IF(E396=$L$29,3,IF(E396=$L$30,4,IF(E396=$L$31,5,IF(E396=$L$32,6,IF(E396=$L$33,9,IF(E396=$L$34,10,\"\"))))))))","v":""},"",""]
[null,null,null,null,null,null,null,null,"",{"$f":"IF(H397=$L$46,1,IF(H397=$L$47,2,IF(H397=$L$48,3,IF(H397=$L$49,4,IF(H397=$L$50,5,IF(H397=$L$51,6,\"\"))))))","v":""},{"$f":"IF(G398=$L$59,1,IF(G398=$L$60,2,\"\"))","v":""}]
[null,null,null,null,null,null,null,null,"","",""]
[null,null,null,null,null,null,null,null,"","",""]
[null,null,null,null,null,null,null,null,"","",""]
[null,null,null,null,null,null,null,null,"","",""]
[null,null,null,null,null,null,null,null,"","",""]
[null,null,null,null,null,null,null,null,"","",""]
[null,null,null,null,null,null,null,null,"","",""]
[null,null,null,null,null,null,null,null,"","",""]
[null,null,null,null,null,null,null,null,"","",""]
[null,null,null,null,null,null,null,null,"","",""]
[null,null,null,null,null,null,null,null,"","",""]
[null,null,null,null,null,null,null,null,"","",""]
[null,null,null,null,null,null,null,null,"","",""]
[null,null,null,null,null,null,null,null,"","",""]
[null,null,null,null,null,null,null,null,"","",""]
[null,null,null,null,null,null,null,null,"","",""]
[null,null,null,null,null,null,null,null,"","",""]
[null,null,null,null,null,null,null,null,"","",""]
[null,null,null,null,null,null,null,null,"","",""]
[null,null,null,null,null,null,null,null,"","",""]
[null,null,null,null,null,null,null,null,"","",""]
[null,null,null,null,null,null,null,null,"","",""]
[null,null,null,null,null,null,null,null,"","",""]
[null,null,null,null,null,null,null,null,"","",""]
[null,null,null,null,null,null,null,null,"","",""]
[null,null,null,null,null,null,null,null,"","",""]
[null,null,null,null,null,null,null,null,"","",""]
[null,null,null,null,null,null,null,null,"","",""]
[null,null,null,null,null,null,null,null,"","",""]
[null,null,null,null,null,null,null,null,"","",""]
[null,null,null,null,null,null,null,null,"","",""]
[null,null,null,null,null,null,null,null,"","",""]
[null,null,null,null,null,null,null,null,"","",""]
[null,null,null,null,null,null,null,null,"","",""]
[null,null,null,null,null,null,null,null,"","",""]
[null,null,null,null,null,null,null,null,"","",""]
[null,null,null,null,null,null,null,null,"","",""]
[null,null,null,null,null,null,null,null,"","",""]
[null,null,null,null,null,null,null,null,"","",""]
[null,null,null,null,null,null,null,null,"","",""]
[null,null,null,null,null,null,null,null,"","",""]
[null,null,null,null,null,null,null,null,"","",""]
[null,null,null,null,null,null,null,null,"","",""]
[null,null,null,null,null,null,null,null,"","",""]
[null,null,null,null,null,null,null,null,"","",""]
[null,null,null,null,null,null,null,null,"","",""]
[null,null,null,null,null,null,null,null,"","",""]
[null,null,null,null,null,null,null,null,"","",""]
[null,null,null,null,null,null,null,null,"","",""]
[null,null,null,null,null,null,null,null,"","",""]
[null,null,null,null,null,null,null,null,"","",""]
[null,null,null,null,null,null,null,null,"","",""]
[null,null,null,null,null,null,null,null,"","",""]
[null,null,null,null,null,null,null,null,"","",""]
[null,null,null,null,null,null,null,null,"","",""]
[null,null,null,null,null,null,null,null,"","",""]
[null,null,null,null,null,null,null,null,"","",""]
[null,null,null,null,null,null,null,null,"","",""]
[null,null,null,null,null,null,null,null,"","",""]
[null,null,null,null,null,null,null,null,"","",""]
[null,null,null,null,null,null,null,null,"","",""]
[null,null,null,null,null,null,null,null,"","",""]
[null,null,null,null,null,null,null,null,{"$f":"IF(E460=$L$27,1,IF(E460=$L$28,2,IF(E460=$L$29,3,IF(E460=$L$30,4,IF(E460=$L$31,5,IF(E460=$L$32,6,IF(E460=$L$33,9,IF(E460=$L$34,10,\"\"))))))))","v":""},"",""]
[null,null,null,null,null,null,null,null,"",{"$f":"IF(H461=$L$46,1,IF(H461=$L$47,2,IF(H461=$L$48,3,IF(H461=$L$49,4,IF(H461=$L$50,5,IF(H461=$L$51,6,\"\"))))))","v":""},{"$f":"IF(G462=$L$59,1,IF(G462=$L$60,2,\"\"))","v":""}]
[null,null,null,null,null,null,null,null,"","",""]
[null,null,null,null,null,null,null,null,"","",""]
[null,null,null,null,null,null,null,null,"","",""]
[null,null,null,null,null,null,null,null,"","",""]
[null,null,null,null,null,null,null,null,"","",""]
[null,null,null,null,null,null,null,null,"","",""]
[null,null,null,null,null,null,null,null,"","",""]
[null,null,null,null,null,null,null,null,"","",""]
[null,null,null,null,null,null,null,null,"","",""]
[null,null,null,null,null,null,null,null,"","",""]
[null,null,null,null,null,null,null,null,"","",""]
[null,null,null,null,null,null,null,null,"","",""]
[null,null,null,null,null,null,null,null,"","",""]
[null,null,null,null,null,null,null,null,"","",""]
[null,null,null,null,null,null,null,null,"","",""]
[null,null,null,null,null,null,null,null,"","",""]
[null,null,null,null,null,null,null,null,"","",""]
[null,null,null,null,null,null,null,null,"","",""]
[null,null,null,null,null,null,null,null,"","",""]
[null,null,null,null,null,null,null,null,"","",""]
[null,null,null,null,null,null,null,null,"","",""]
[null,null,null,null,null,null,null,null,"","",""]
[null,null,null,null,null,null,null,null,"","",""]
[null,null,null,null,null,null,null,null,"","",""]
[null,null,null,null,null,null,null,null,"","",""]
[null,null,null,null,null,null,null,null,"","",""]
[null,null,null,null,null,null,null,null,"","",""]
[null,null,null,null,null,null,null,null,"","",""]
[null,null,null,null,null,null,null,null,"","",""]
[null,null,null,null,null,null,null,null,"","",""]
[null,null,null,null,null,null,null,null,"","",""]
[null,null,null,null,null,null,null,null,"","",""]
[null,null,null,null,null,null,null,null,"","",""]
[null,null,null,null,null,null,null,null,"","",""]
[null,null,null,null,null,null,null,null,"","",""]
[null,null,null,null,null,null,null,null,"","",""]
[null,null,null,null,null,null,null,null,"","",""]
[null,null,null,null,null,null,null,null,"","",""]
[null,null,null,null,null,null,null,null,"","",""]
[null,null,null,null,null,null,null,null,"","",""]
[null,null,null,null,null,null,null,null,"","",""]
[null,null,null,null,null,null,null,null,"","",""]
[null,null,null,null,null,null,null,null,"","",""]
[null,null,null,null,null,null,null,null,"","",""]
[null,null,null,null,null,null,null,null,"","",""]
[null,null,null,null,null,null,null,null,"","",""]
[null,null,null,null,null,null,null,null,"","",""]
[null,null,null,null,null,null,null,null,"","",""]
[null,null,null,null,null,null,null,null,"","",""]
[null,null,null,null,null,null,null,null,"","",""]
[null,null,null,null,null,null,null,null,"","",""]
[null,null,null,null,null,null,null,null,"","",""]
[null,null,null,null,null,null,null,null,"","",""]
[null,null,null,null,null,null,null,null,"","",""]
[null,null,null,null,null,null,null,null,"","",""]
[null,null,null,null,null,null,null,null,"","",""]
[null,null,null,null,null,null,null,null,"","",""]
[null,null,null,null,null,null,null,null,"","",""]
[null,null,null,null,null,null,null,null,"","",""]
[null,null,null,null,null,null,null,null,"","",""]
[null,null,null,null,null,null,null,null,"","",""]
[null,null,null,null,null,null,null,null,"","",""]
[null,null,null,null,null,null,null,null,{"$f":"IF(E524=$L$27,1,IF(E524=$L$28,2,IF(E524=$L$29,3,IF(E524=$L$30,4,IF(E524=$L$31,5,IF(E524=$L$32,6,IF(E524=$L$33,9,IF(E524=$L$34,10,\"\"))))))))","v":""},"",""]
[null,null,null,null,null,null,null,null,"",{"$f":"IF(H525=$L$46,1,IF(H525=$L$47,2,IF(H525=$L$48,3,IF(H525=$L$49,4,IF(H525=$L$50,5,IF(H525=$L$51,6,\"\"))))))","v":""},{"$f":"IF(G526=$L$59,1,IF(G526=$L$60,2,\"\"))","v":""}]
[null,null,null,null,null,null,null,null,"","",""]
[null,null,null,null,null,null,null,null,"","",""]
[null,null,null,null,null,null,null,null,"","",""]
[null,null,null,null,null,null,null,null,"","",""]
[null,null,null,null,null,null,null,null,"","",""]
[null,null,null,null,null,null,null,null,"","",""]
[null,null,null,null,null,null,null,null,"","",""]
[null,null,null,null,null,null,null,null,"","",""]
[null,null,null,null,null,null,null,null,"","",""]
[null,null,null,null,null,null,null,null,"","",""]
[null,null,null,null,null,null,null,null,"","",""]
[null,null,null,null,null,null,null,null,"","",""]
[null,null,null,null,null,null,null,null,"","",""]
[null,null,null,null,null,null,null,null,"","",""]
[null,null,null,null,null,null,null,null,"","",""]
[null,null,null,null,null,null,null,null,"","",""]
[null,null,null,null,null,null,null,null,"","",""]
[null,null,null,null,null,null,null,null,"","",""]
[null,null,null,null,null,null,null,null,"","",""]
[null,null,null,null,null,null,null,null,"","",""]
[null,null,null,null,null,null,null,null,"","",""]
[null,null,null,null,null,null,null,null,"","",""]
[null,null,null,null,null,null,null,null,"","",""]
[null,null,null,null,null,null,null,null,"","",""]
[null,null,null,null,null,null,null,null,"","",""]
[null,null,null,null,null,null,null,null,"","",""]
[null,null,null,null,null,null,null,null,"","",""]
[null,null,null,null,null,null,null,null,"","",""]
[null,null,null,null,null,null,null,null,"","",""]
[null,null,null,null,null,null,null,null,"","",""]
[null,null,null,null,null,null,null,null,"","",""]
[null,null,null,null,null,null,null,null,"","",""]
[null,null,null,null,null,null,null,null,"","",""]
[null,null,null,null,null,null,null,null,"","",""]
[null,null,null,null,null,null,null,null,"","",""]
[null,null,null,null,null,null,null,null,"","",""]
[null,null,null,null,null,null,null,null,"","",""]
[null,null,null,null,null,null,null,null,"","",""]
[null,null,null,null,null,null,null,null,"","",""]
[null,null,null,null,null,null,null,null,"","",""]
[null,null,null,null,null,null,null,null,"","",""]
[null,null,null,null,null,null,null,null,"","",""]
[null,null,null,null,null,null,null,null,"","",""]
[null,null,null,null,null,null,null,null,"","",""]
[null,null,null,null,null,null,null,null,"","",""]
[null,null,null,null,null,null,null,null,"","",""]
[null,null,null,null,null,null,null,null,"","",""]
[null,null,null,null,null,null,null,null,"","",""]
[null,null,null,null,null,null,null,null,"","",""]
[null,null,null,null,null,null,null,null,"","",""]
[null,null,null,null,null,null,null,null,"","",""]
[null,null,null,null,null,null,null,null,"","",""]
[null,null,null,null,null,null,null,null,"","",""]
[null,null,null,null,null,null,null,null,"","",""]
[null,null,null,null,null,null,null,null,"","",""]
[null,null,null,null,null,null,null,null,"","",""]
[null,null,null,null,null,null,null,null,"","",""]
[null,null,null,null,null,null,null,null,"","",""]
[null,null,null,null,null,null,null,null,"","",""]
[null,null,null,null,null,null,null,null,"","",""]
[null,null,null,null,null,null,null,null,"","",""]
[null,null,null,null,null,null,null,null,"","",""]
[null,null,null,null,null,null,null,null,{"$f":"IF(E588=$L$27,1,IF(E588=$L$28,2,IF(E588=$L$29,3,IF(E588=$L$30,4,IF(E588=$L$31,5,IF(E588=$L$32,6,IF(E588=$L$33,9,IF(E588=$L$34,10,\"\"))))))))","v":""},"",""]
[null,null,null,null,null,null,null,null,"",{"$f":"IF(H589=$L$46,1,IF(H589=$L$47,2,IF(H589=$L$48,3,IF(H589=$L$49,4,IF(H589=$L$50,5,IF(H589=$L$51,6,\"\"))))))","v":""},{"$f":"IF(G590=$L$59,1,IF(G590=$L$60,2,\"\"))","v":""}]
[null,null,null,null,null,null,null,null,"","",""]
[null,null,null,null,null,null,null,null,"","",""]
[null,null,null,null,null,null,null,null,"","",""]
[null,null,null,null,null,null,null,null,"","",""]
[null,null,null,null,null,null,null,null,"","",""]
[null,null,null,null,null,null,null,null,"","",""]
[null,null,null,null,null,null,null,null,"","",""]
[null,null,null,null,null,null,null,null,"","",""]
[null,null,null,null,null,null,null,null,"","",""]
[null,null,null,null,null,null,null,null,"","",""]
[null,null,null,null,null,null,null,null,"","",""]
[null,null,null,null,null,null,null,null,"","",""]
[null,null,null,null,null,null,null,null,"","",""]
[null,null,null,null,null,null,null,null,"","",""]
[null,null,null,null,null,null,null,null,"","",""]
[null,null,null,null,null,null,null,null,"","",""]
[null,null,null,null,null,null,null,null,"","",""]
[null,null,null,null,null,null,null,null,"","",""]
[null,null,null,null,null,null,null,null,"","",""]
[null,null,null,null,null,null,null,null,"","",""]
[null,null,null,null,null,null,null,null,"","",""]
[null,null,null,null,null,null,null,null,"","",""]
[null,null,null,null,null,null,null,null,"","",""]
[null,null,null,null,null,null,null,null,"","",""]
[null,null,null,null,null,null,null,null,"","",""]
[null,null,null,null,null,null,null,null,"","",""]
[null,null,null,null,null,null,null,null,"","",""]
[null,null,null,null,null,null,null,null,"","",""]
[null,null,null,null,null,null,null,null,"","",""]
[null,null,null,null,null,null,null,null,"","",""]
[null,null,null,null,null,null,null,null,"","",""]
[null,null,null,null,null,null,null,null,"","",""]
[null,null,null,null,null,null,null,null,"","",""]
[null,null,null,null,null,null,null,null,"","",""]
[null,null,null,null,null,null,null,null,"","",""]
[null,null,null,null,null,null,null,null,"","",""]
[null,null,null,null,null,null,null,null,"","",""]
[null,null,null,null,null,null,null,null,"","",""]
[null,null,null,null,null,null,null,null,"","",""]
[null,null,null,null,null,null,null,null,"","",""]
[null,null,null,null,null,null,null,null,"","",""]
[null,null,null,null,null,null,null,null,"","",""]
[null,null,null,null,null,null,null,null,"","",""]
[null,null,null,null,null,null,null,null,"","",""]
[null,null,null,null,null,null,null,null,"","",""]
[null,null,null,null,null,null,null,null,"","",""]
[null,null,null,null,null,null,null,null,"","",""]
[null,null,null,null,null,null,null,null,"","",""]
[null,null,null,null,null,null,null,null,"","",""]
[null,null,null,null,null,null,null,null,"","",""]
[null,null,null,null,null,null,null,null,"","",""]
[null,null,null,null,null,null,null,null,"","",""]
[null,null,null,null,null,null,null,null,"","",""]
[null,null,null,null,null,null,null,null,"","",""]
[null,null,null,null,null,null,null,null,"","",""]
[null,null,null,null,null,null,null,null,"","",""]
[null,null,null,null,null,null,null,null,"","",""]
[null,null,null,null,null,null,null,null,"","",""]
[null,null,null,null,null,null,null,null,"","",""]
[null,null,null,null,null,null,null,null,"","",""]
[null,null,null,null,null,null,null,null,"","",""]
[null,null,null,null,null,null,null,null,"","",""]
[null,null,null,null,null,null,null,null,{"$f":"IF(E652=$L$27,1,IF(E652=$L$28,2,IF(E652=$L$29,3,IF(E652=$L$30,4,IF(E652=$L$31,5,IF(E652=$L$32,6,IF(E652=$L$33,9,IF(E652=$L$34,10,\"\"))))))))","v":""},"",""]
[null,null,null,null,null,null,null,null,"",{"$f":"IF(H653=$L$46,1,IF(H653=$L$47,2,IF(H653=$L$48,3,IF(H653=$L$49,4,IF(H653=$L$50,5,IF(H653=$L$51,6,\"\"))))))","v":""},{"$f":"IF(G654=$L$59,1,IF(G654=$L$60,2,\"\"))","v":""}]
[null,null,null,null,null,null,null,null,"","",""]
[null,null,null,null,null,null,null,null,"","",""]
[null,null,null,null,null,null,null,null,"","",""]
[null,null,null,null,null,null,null,null,"","",""]
[null,null,null,null,null,null,null,null,"","",""]
[null,null,null,null,null,null,null,null,"","",""]
[null,null,null,null,null,null,null,null,"","",""]
[null,null,null,null,null,null,null,null,"","",""]
[null,null,null,null,null,null,null,null,"","",""]
[null,null,null,null,null,null,null,null,"","",""]
[null,null,null,null,null,null,null,null,"","",""]
[null,null,null,null,null,null,null,null,"","",""]
[null,null,null,null,null,null,null,null,"","",""]
[null,null,null,null,null,null,null,null,"","",""]
[null,null,null,null,null,null,null,null,"","",""]
[null,null,null,null,null,null,null,null,"","",""]
[null,null,null,null,null,null,null,null,"","",""]
[null,null,null,null,null,null,null,null,"","",""]
[null,null,null,null,null,null,null,null,"","",""]
[null,null,null,null,null,null,null,null,"","",""]
[null,null,null,null,null,null,null,null,"","",""]
[null,null,null,null,null,null,null,null,"","",""]
[null,null,null,null,null,null,null,null,"","",""]
[null,null,null,null,null,null,null,null,"","",""]
[null,null,null,null,null,null,null,null,"","",""]
[null,null,null,null,null,null,null,null,"","",""]
[null,null,null,null,null,null,null,null,"","",""]
[null,null,null,null,null,null,null,null,"","",""]
[null,null,null,null,null,null,null,null,"","",""]
[null,null,null,null,null,null,null,null,"","",""]
[null,null,null,null,null,null,null,null,"","",""]
[null,null,null,null,null,null,null,null,"","",""]
[null,null,null,null,null,null,null,null,"","",""]
[null,null,null,null,null,null,null,null,"","",""]
[null,null,null,null,null,null,null,null,"","",""]
[null,null,null,null,null,null,null,null,"","",""]
[null,null,null,null,null,null,null,null,"","",""]
[null,null,null,null,null,null,null,null,"","",""]
[null,null,null,null,null,null,null,null,"","",""]
[null,null,null,null,null,null,null,null,"","",""]
[null,null,null,null,null,null,null,null,"","",""]
[null,null,null,null,null,null,null,null,"","",""]
[null,null,null,null,null,null,null,null,"","",""]
[null,null,null,null,null,null,null,null,"","",""]
[null,null,null,null,null,null,null,null,"","",""]
[null,null,null,null,null,null,null,null,"","",""]
[null,null,null,null,null,null,null,null,"","",""]
[null,null,null,null,null,null,null,null,"","",""]
[null,null,null,null,null,null,null,null,"","",""]
[null,null,null,null,null,null,null,null,"","",""]
[null,null,null,null,null,null,null,null,"","",""]
[null,null,null,null,null,null,null,null,"","",""]
[null,null,null,null,null,null,null,null,"","",""]
[null,null,null,null,null,null,null,null,"","",""]
[null,null,null,null,null,null,null,null,"","",""]
[null,null,null,null,null,null,null,null,"","",""]
[null,null,null,null,null,null,null,null,"","",""]
[null,null,null,null,null,null,null,null,"","",""]
[null,null,null,null,null,null,null,null,"","",""]
[null,null,null,null,null,null,null,null,"","",""]
[null,null,null,null,null,null,null,null,"","",""]
[null,null,null,null,null,null,null,null,"","",""]
[null,null,null,null,null,null,null,null,{"$f":"IF(E716=$L$27,1,IF(E716=$L$28,2,IF(E716=$L$29,3,IF(E716=$L$30,4,IF(E716=$L$31,5,IF(E716=$L$32,6,IF(E716=$L$33,9,IF(E716=$L$34,10,\"\"))))))))","v":""},"",""]
[null,null,null,null,null,null,null,null,"",{"$f":"IF(H717=$L$46,1,IF(H717=$L$47,2,IF(H717=$L$48,3,IF(H717=$L$49,4,IF(H717=$L$50,5,IF(H717=$L$51,6,\"\"))))))","v":""},{"$f":"IF(G718=$L$59,1,IF(G718=$L$60,2,\"\"))","v":""}]
[null,null,null,null,null,null,null,null,"","",""]
[null,null,null,null,null,null,null,null,"","",""]
[null,null,null,null,null,null,null,null,"","",""]
[null,null,null,null,null,null,null,null,"","",""]
[null,null,null,null,null,null,null,null,"","",""]
[null,null,null,null,null,null,null,null,"","",""]
[null,null,null,null,null,null,null,null,"","",""]
[null,null,null,null,null,null,null,null,"","",""]
[null,null,null,null,null,null,null,null,"","",""]
[null,null,null,null,null,null,null,null,"","",""]
[null,null,null,null,null,null,null,null,"","",""]
[null,null,null,null,null,null,null,null,"","",""]
[null,null,null,null,null,null,null,null,"","",""]
[null,null,null,null,null,null,null,null,"","",""]
[null,null,null,null,null,null,null,null,"","",""]
[null,null,null,null,null,null,null,null,"","",""]
[null,null,null,null,null,null,null,null,"","",""]
[null,null,null,null,null,null,null,null,"","",""]
[null,null,null,null,null,null,null,null,"","",""]
[null,null,null,null,null,null,null,null,"","",""]
[null,null,null,null,null,null,null,null,"","",""]
[null,null,null,null,null,null,null,null,"","",""]
[null,null,null,null,null,null,null,null,"","",""]
[null,null,null,null,null,null,null,null,"","",""]
[null,null,null,null,null,null,null,null,"","",""]
[null,null,null,null,null,null,null,null,"","",""]
[null,null,null,null,null,null,null,null,"","",""]
[null,null,null,null,null,null,null,null,"","",""]
[null,null,null,null,null,null,null,null,"","",""]
[null,null,null,null,null,null,null,null,"","",""]
[null,null,null,null,null,null,null,null,"","",""]
[null,null,null,null,null,null,null,null,"","",""]
[null,null,null,null,null,null,null,null,"","",""]
[null,null,null,null,null,null,null,null,"","",""]
[null,null,null,null,null,null,null,null,"","",""]
[null,null,null,null,null,null,null,null,"","",""]
[null,null,null,null,null,null,null,null,"","",""]
[null,null,null,null,null,null,null,null,"","",""]
[null,null,null,null,null,null,null,null,"","",""]
[null,null,null,null,null,null,null,null,"","",""]
[null,null,null,null,null,null,null,null,"","",""]
[null,null,null,null,null,null,null,null,"","",""]
[null,null,null,null,null,null,null,null,"","",""]
[null,null,null,null,null,null,null,null,"","",""]
[null,null,null,null,null,null,null,null,"","",""]
[null,null,null,null,null,null,null,null,"","",""]
[null,null,null,null,null,null,null,null,"","",""]
[null,null,null,null,null,null,null,null,"","",""]
[null,null,null,null,null,null,null,null,"","",""]
[null,null,null,null,null,null,null,null,"","",""]
[null,null,null,null,null,null,null,null,"","",""]
[null,null,null,null,null,null,null,null,"","",""]
[null,null,null,null,null,null,null,null,"","",""]
[null,null,null,null,null,null,null,null,"","",""]
[null,null,null,null,null,null,null,null,"","",""]
[null,null,null,null,null,null,null,null,"","",""]
[null,null,null,null,null,null,null,null,"","",""]
[null,null,null,null,null,null,null,null,"","",""]
[null,null,null,null,null,null,null,null,"","",""]
[null,null,null,null,null,null,null,null,"","",""]
[null,null,null,null,null,null,null,null,"","",""]
[null,null,null,null,null,null,null,null,"","",""]
[null,null,null,null,null,null,null,null,{"$f":"IF(E780=$L$27,1,IF(E780=$L$28,2,IF(E780=$L$29,3,IF(E780=$L$30,4,IF(E780=$L$31,5,IF(E780=$L$32,6,IF(E780=$L$33,9,IF(E780=$L$34,10,\"\"))))))))","v":""},"",""]
[null,null,null,null,null,null,null,null,"",{"$f":"IF(H781=$L$46,1,IF(H781=$L$47,2,IF(H781=$L$48,3,IF(H781=$L$49,4,IF(H781=$L$50,5,IF(H781=$L$51,6,\"\"))))))","v":""},{"$f":"IF(G782=$L$59,1,IF(G782=$L$60,2,\"\"))","v":""}]
[null,null,null,null,null,null,null,null,"","",""]
[null,null,null,null,null,null,null,null,"","",""]
[null,null,null,null,null,null,null,null,"","",""]
[null,null,null,null,null,null,null,null,"","",""]
[null,null,null,null,null,null,null,null,"","",""]
[null,null,null,null,null,null,null,null,"","",""]
[null,null,null,null,null,null,null,null,"","",""]
[null,null,null,null,null,null,null,null,"","",""]
[null,null,null,null,null,null,null,null,"","",""]
[null,null,null,null,null,null,null,null,"","",""]
[null,null,null,null,null,null,null,null,"","",""]
[null,null,null,null,null,null,null,null,"","",""]
[null,null,null,null,null,null,null,null,"","",""]
[null,null,null,null,null,null,null,null,"","",""]
[null,null,null,null,null,null,null,null,"","",""]
[null,null,null,null,null,null,null,null,"","",""]
[null,null,null,null,null,null,null,null,"","",""]
[null,null,null,null,null,null,null,null,"","",""]
[null,null,null,null,null,null,null,null,"","",""]
[null,null,null,null,null,null,null,null,"","",""]
[null,null,null,null,null,null,null,null,"","",""]
[null,null,null,null,null,null,null,null,"","",""]
[null,null,null,null,null,null,null,null,"","",""]
[null,null,null,null,null,null,null,null,"","",""]
[null,null,null,null,null,null,null,null,"","",""]
[null,null,null,null,null,null,null,null,"","",""]
[null,null,null,null,null,null,null,null,"","",""]
[null,null,null,null,null,null,null,null,"","",""]
[null,null,null,null,null,null,null,null,"","",""]
[null,null,null,null,null,null,null,null,"","",""]
[null,null,null,null,null,null,null,null,"","",""]
[null,null,null,null,null,null,null,null,"","",""]
[null,null,null,null,null,null,null,null,"","",""]
[null,null,null,null,null,null,null,null,"","",""]
[null,null,null,null,null,null,null,null,"","",""]
[null,null,null,null,null,null,null,null,"","",""]
[null,null,null,null,null,null,null,null,"","",""]
[null,null,null,null,null,null,null,null,"","",""]
[null,null,null,null,null,null,null,null,"","",""]
[null,null,null,null,null,null,null,null,"","",""]
[null,null,null,null,null,null,null,null,"","",""]
[null,null,null,null,null,null,null,null,"","",""]
[null,null,null,null,null,null,null,null,"","",""]
[null,null,null,null,null,null,null,null,"","",""]
[null,null,null,null,null,null,null,null,"","",""]
[null,null,null,null,null,null,null,null,"","",""]
[null,null,null,null,null,null,null,null,"","",""]
[null,null,null,null,null,null,null,null,"","",""]
[null,null,null,null,null,null,null,null,"","",""]
[null,null,null,null,null,null,null,null,"","",""]
[null,null,null,null,null,null,null,null,"","",""]
[null,null,null,null,null,null,null,null,"","",""]
[null,null,null,null,null,null,null,null,"","",""]
[null,null,null,null,null,null,null,null,"","",""]
[null,null,null,null,null,null,null,null,"","",""]
[null,null,null,null,null,null,null,null,"","",""]
[null,null,null,null,null,null,null,null,"","",""]
[null,null,null,null,null,null,null,null,"","",""]
[null,null,null,null,null,null,null,null,"","",""]
[null,null,null,null,null,null,null,null,"","",""]
[null,null,null,null,null,null,null,null,"","",""]
[null,null,null,null,null,null,null,null,"","",""]
[null,null,null,null,null,null,null,null,{"$f":"IF(E844=$L$27,1,IF(E844=$L$28,2,IF(E844=$L$29,3,IF(E844=$L$30,4,IF(E844=$L$31,5,IF(E844=$L$32,6,IF(E844=$L$33,9,IF(E844=$L$34,10,\"\"))))))))","v":""},"",""]
[null,null,null,null,null,null,null,null,"",{"$f":"IF(H845=$L$46,1,IF(H845=$L$47,2,IF(H845=$L$48,3,IF(H845=$L$49,4,IF(H845=$L$50,5,IF(H845=$L$51,6,\"\"))))))","v":""},{"$f":"IF(G846=$L$59,1,IF(G846=$L$60,2,\"\"))","v":""}]
[null,null,null,null,null,null,null,null,"","",""]
[null,null,null,null,null,null,null,null,"","",""]
[null,null,null,null,null,null,null,null,"","",""]
[null,null,null,null,null,null,null,null,"","",""]
[null,null,null,null,null,null,null,null,"","",""]
[null,null,null,null,null,null,null,null,"","",""]
[null,null,null,null,null,null,null,null,"","",""]
[null,null,null,null,null,null,null,null,"","",""]
[null,null,null,null,null,null,null,null,"","",""]
[null,null,null,null,null,null,null,null,"","",""]
[null,null,null,null,null,null,null,null,"","",""]
[null,null,null,null,null,null,null,null,"","",""]
[null,null,null,null,null,null,null,null,"","",""]
[null,null,null,null,null,null,null,null,"","",""]
[null,null,null,null,null,null,null,null,"","",""]
[null,null,null,null,null,null,null,null,"","",""]
[null,null,null,null,null,null,null,null,"","",""]
[null,null,null,null,null,null,null,null,"","",""]
[null,null,null,null,null,null,null,null,"","",""]
[null,null,null,null,null,null,null,null,"","",""]
[null,null,null,null,null,null,null,null,"","",""]
[null,null,null,null,null,null,null,null,"","",""]
[null,null,null,null,null,null,null,null,"","",""]
[null,null,null,null,null,null,null,null,"","",""]
[null,null,null,null,null,null,null,null,"","",""]
[null,null,null,null,null,null,null,null,"","",""]
[null,null,null,null,null,null,null,null,"","",""]
[null,null,null,null,null,null,null,null,"","",""]
[null,null,null,null,null,null,null,null,"","",""]
[null,null,null,null,null,null,null,null,"","",""]
[null,null,null,null,null,null,null,null,"","",""]
[null,null,null,null,null,null,null,null,"","",""]
[null,null,null,null,null,null,null,null,"","",""]
[null,null,null,null,null,null,null,null,"","",""]
[null,null,null,null,null,null,null,null,"","",""]
[null,null,null,null,null,null,null,null,"","",""]
[null,null,null,null,null,null,null,null,"","",""]
[null,null,null,null,null,null,null,null,"","",""]
[null,null,null,null,null,null,null,null,"","",""]
[null,null,null,null,null,null,null,null,"","",""]
[null,null,null,null,null,null,null,null,"","",""]
[null,null,null,null,null,null,null,null,"","",""]
[null,null,null,null,null,null,null,null,"","",""]
[null,null,null,null,null,null,null,null,"","",""]
[null,null,null,null,null,null,null,null,"","",""]
[null,null,null,null,null,null,null,null,"","",""]
[null,null,null,null,null,null,null,null,"","",""]
[null,null,null,null,null,null,null,null,"","",""]
[null,null,null,null,null,null,null,null,"","",""]
[null,null,null,null,null,null,null,null,"","",""]
[null,null,null,null,null,null,null,null,"","",""]
[null,null,null,null,null,null,null,null,"","",""]
[null,null,null,null,null,null,null,null,"","",""]
[null,null,null,null,null,null,null,null,"","",""]
[null,null,null,null,null,null,null,null,"","",""]
[null,null,null,null,null,null,null,null,"","",""]
[null,null,null,null,null,null,null,null,"","",""]
[null,null,null,null,null,null,null,null,"","",""]
[null,null,null,null,null,null,null,null,"","",""]
[null,null,null,null,null,null,null,null,"","",""]
[null,null,null,null,null,null,null,null,"","",""]
[null,null,null,null,null,null,null,null,"","",""]
[null,null,null,null,null,null,null,null,{"$f":"IF(E908=$L$27,1,IF(E908=$L$28,2,IF(E908=$L$29,3,IF(E908=$L$30,4,IF(E908=$L$31,5,IF(E908=$L$32,6,IF(E908=$L$33,9,IF(E908=$L$34,10,\"\"))))))))","v":""},"",""]
[null,null,null,null,null,null,null,null,"",{"$f":"IF(H909=$L$46,1,IF(H909=$L$47,2,IF(H909=$L$48,3,IF(H909=$L$49,4,IF(H909=$L$50,5,IF(H909=$L$51,6,\"\"))))))","v":""},{"$f":"IF(G910=$L$59,1,IF(G910=$L$60,2,\"\"))","v":""}]
[null,null,null,null,null,null,null,null,"","",""]
[null,null,null,null,null,null,null,null,"","",""]
[null,null,null,null,null,null,null,null,"","",""]
[null,null,null,null,null,null,null,null,"","",""]
[null,null,null,null,null,null,null,null,"","",""]
[null,null,null,null,null,null,null,null,"","",""]
[null,null,null,null,null,null,null,null,"","",""]
[null,null,null,null,null,null,null,null,"","",""]
[null,null,null,null,null,null,null,null,"","",""]
[null,null,null,null,null,null,null,null,"","",""]
[null,null,null,null,null,null,null,null,"","",""]
[null,null,null,null,null,null,null,null,"","",""]
[null,null,null,null,null,null,null,null,"","",""]
[null,null,null,null,null,null,null,null,"","",""]
[null,null,null,null,null,null,null,null,"","",""]
[null,null,null,null,null,null,null,null,"","",""]
[null,null,null,null,null,null,null,null,"","",""]
[null,null,null,null,null,null,null,null,"","",""]
[null,null,null,null,null,null,null,null,"","",""]
[null,null,null,null,null,null,null,null,"","",""]
[null,null,null,null,null,null,null,null,"","",""]
[null,null,null,null,null,null,null,null,"","",""]
[null,null,null,null,null,null,null,null,"","",""]
[null,null,null,null,null,null,null,null,"","",""]
[null,null,null,null,null,null,null,null,"","",""]
[null,null,null,null,null,null,null,null,"","",""]
[null,null,null,null,null,null,null,null,"","",""]
[null,null,null,null,null,null,null,null,"","",""]
[null,null,null,null,null,null,null,null,"","",""]
[null,null,null,null,null,null,null,null,"","",""]
[null,null,null,null,null,null,null,null,"","",""]
[null,null,null,null,null,null,null,null,"","",""]
[null,null,null,null,null,null,null,null,"","",""]
[null,null,null,null,null,null,null,null,"","",""]
[null,null,null,null,null,null,null,null,"","",""]
[null,null,null,null,null,null,null,null,"","",""]
[null,null,null,null,null,null,null,null,"","",""]
[null,null,null,null,null,null,null,null,"","",""]
[null,null,null,null,null,null,null,null,"","",""]
[null,null,null,null,null,null,null,null,"","",""]
[null,null,null,null,null,null,null,null,"","",""]
[null,null,null,null,null,null,null,null,"","",""]
[null,null,null,null,null,null,null,null,"","",""]
[null,null,null,null,null,null,null,null,"","",""]
[null,null,null,null,null,null,null,null,"","",""]
[null,null,null,null,null,null,null,null,"","",""]
[null,null,null,null,null,null,null,null,"","",""]
[null,null,null,null,null,null,null,null,"","",""]
[null,null,null,null,null,null,null,null,"","",""]
[null,null,null,null,null,null,null,null,"","",""]
[null,null,null,null,null,null,null,null,"","",""]
[null,null,null,null,null,null,null,null,"","",""]
[null,null,null,null,null,null,null,null,"","",""]
[null,null,null,null,null,null,null,null,"","",""]
[null,null,null,null,null,null,null,null,"","",""]
[null,null,null,null,null,null,null,null,"","",""]
[null,null,null,null,null,null,null,null,"","",""]
[null,null,null,null,null,null,null,null,"","",""]
[null,null,null,null,null,null,null,null,"","",""]
[null,null,null,null,null,null,null,null,"","",""]
[null,null,null,null,null,null,null,null,"","",""]
[null,null,null,null,null,null,null,null,"","",""]
[null,null,null,null,null,null,null,null,{"$f":"IF(E972=$L$27,1,IF(E972=$L$28,2,IF(E972=$L$29,3,IF(E972=$L$30,4,IF(E972=$L$31,5,IF(E972=$L$32,6,IF(E972=$L$33,9,IF(E972=$L$34,10,\"\"))))))))","v":""},"",""]
[null,null,null,null,null,null,null,null,"",{"$f":"IF(H973=$L$46,1,IF(H973=$L$47,2,IF(H973=$L$48,3,IF(H973=$L$49,4,IF(H973=$L$50,5,IF(H973=$L$51,6,\"\"))))))","v":""},{"$f":"IF(G974=$L$59,1,IF(G974=$L$60,2,\"\"))","v":""}]
[null,null,null,null,null,null,null,null,"","",""]
[null,null,null,null,null,null,null,null,"","",""]
[null,null,null,null,null,null,null,null,"","",""]
[null,null,null,null,null,null,null,null,"","",""]
[null,null,null,null,null,null,null,null,"","",""]
[null,null,null,null,null,null,null,null,"","",""]
[null,null,null,null,null,null,null,null,"","",""]
[null,null,null,null,null,null,null,null,"","",""]
[null,null,null,null,null,null,null,null,"","",""]
[null,null,null,null,null,null,null,null,"","",""]
[null,null,null,null,null,null,null,null,"","",""]
[null,null,null,null,null,null,null,null,"","",""]
[null,null,null,null,null,null,null,null,"","",""]
[null,null,null,null,null,null,null,null,"","",""]
[null,null,null,null,null,null,null,null,"","",""]
[null,null,null,null,null,null,null,null,"","",""]
[null,null,null,null,null,null,null,null,"","",""]
[null,null,null,null,null,null,null,null,"","",""]
[null,null,null,null,null,null,null,null,"","",""]
[null,null,null,null,null,null,null,null,"","",""]
[null,null,null,null,null,null,null,null,"","",""]
[null,null,null,null,null,null,null,null,"","",""]
[null,null,null,null,null,null,null,null,"","",""]
[null,null,null,null,null,null,null,null,"","",""]
[null,null,null,null,null,null,null,null,"","",""]
[null,null,null,null,null,null,null,null,"","",""]
[null,null,null,null,null,null,null,null,"",""]